bitfinex/quotes_SOLUSD_20220114
["timestamp","ask_amount","ask_price","bid_price","bid_amount"]
[1642160776056,10.7809,142.48,142.4,4.01322374]
[1642160776256,2.807,142.47,142.4,4.01322374]
[1642160776457,10.5335,142.44,142.4,4.01322374]
[1642160776859,11.0435,142.44,142.39,4.01601532]
[1642160777057,25.59321755,142.43,142.39,4.01601532]
[1642160777256,0.51,142.44,142.39,4.01601532]
[1642160777855,10.5344,142.43,142.37,10.5335]
[1642160778056,0.51,142.43,142.37,10.5335]
[1642160778458,0.25,142.43,142.37,10.5335]
[1642160779160,23.43943138,142.44,142.37,10.5335]
[1642160779460,26.24643138,142.44,142.37,10.5335]
[1642160779657,23.43943138,142.44,142.37,10.5335]
[1642160780063,33.97283138,142.44,142.35,17.35791532]
[1642160780263,2.809,142.43,142.35,14.55091532]
[1642160780462,0.51,142.43,142.35,14.55091532]
[1642160781261,0.25,142.43,142.35,14.55091532]
[1642160781461,0.25,142.43,142.36,14.54941631]
[1642160781762,26.24843138,142.44,142.36,14.54941631]
[1642160782162,10.5339,142.43,142.36,14.54941631]
[1642160782363,10.5339,142.43,142.36,10.5346]
[1642160782564,11.0439,142.43,142.35,14.55161532]
[1642160783597,0.51,142.43,142.35,10.7956]
[1642160783798,2.809,142.45,142.36,2.809]
[1642160783995,2.807,142.5,142.4,10.5312]
[1642160784196,24.3802,142.5,142.41,2.807]
[1642160784596,24.3802,142.5,142.41,3.057]
[1642160784797,26.76170768,142.49,142.41,3.057]
[1642160785500,10.5303,142.48,142.41,13.5875]
[1642160786296,10.5303,142.48,142.41,2.807]
[1642160786496,10.7903,142.48,142.41,2.807]
[1642160786699,13.5973,142.48,142.39,22.9902]
[1642160786897,13.5973,142.48,142.39,23.2402]
[1642160787996,13.8473,142.48,142.39,23.2402]
[1642160788598,13.8473,142.48,142.39,33.7728]
[1642160788796,13.8473,142.48,142.39,23.2402]
[1642160789997,83.6873,142.48,142.39,23.2402]
[1642160790500,10.09,142.47,142.39,26.0472]
[1642160790700,10.5329,142.45,142.39,26.0472]
[1642160791098,0.25,142.45,142.39,26.0472]
[1642160791699,0.25,142.45,142.39,36.5797]
[1642160792101,25.83110328,142.46,142.39,36.5797]
[1642160792498,26.09110328,142.46,142.39,2.807]
[1642160792698,13.3394,142.45,142.36,26.7794]
[1642160792900,23.4294,142.45,142.36,23.9724]
[1642160793098,23.9394,142.45,142.36,23.9724]
[1642160793698,23.6894,142.45,142.36,34.5072]
[1642160793901,23.6894,142.45,142.37,2.807]
[1642160794099,23.6894,142.45,142.36,23.9724]
[1642160794299,20.8824,142.45,142.37,2.807]
[1642160794499,20.8824,142.45,142.37,3.057]
[1642160794698,20.8824,142.45,142.37,2.807]
[1642160795100,21.1324,142.45,142.37,2.807]
[1642160795600,21.1324,142.45,142.37,13.341]
[1642160796602,2.807,142.44,142.37,13.341]
[1642160796800,35.71888333,142.43,142.37,13.341]
[1642160797002,36.22888333,142.43,142.37,13.341]
[1642160797403,35.97888333,142.43,142.37,13.341]
[1642160797802,35.97888333,142.43,142.37,13.591]
[1642160798507,10.7943,142.43,142.37,13.591]
[1642160798705,0.26,142.43,142.37,13.591]
[1642160799107,10.7932,142.44,142.37,13.591]
[1642160800212,11.0432,142.44,142.37,13.341]
[1642160800412,10.5356,142.41,142.34,2.807]
[1642160800618,10.5356,142.41,142.33,29.54181532]
[1642160800812,11.0456,142.41,142.33,29.54181532]
[1642160801413,11.0456,142.41,142.33,47.290228]
[1642160801611,11.0456,142.41,142.34,10.5364]
[1642160802715,10.7956,142.41,142.35,2.809]
[1642160803014,10.7956,142.41,142.35,13.5943]
[1642160803215,10.7956,142.41,142.35,10.5353]
[1642160803917,10.7956,142.41,142.35,10.7853]
[1642160804820,0.26,142.41,142.35,10.7853]
[1642160805019,24.71185243,142.42,142.35,10.7853]
[1642160806320,0.25,142.42,142.35,10.7853]
[1642160806521,26.9128,142.43,142.35,10.7853]
[1642160806726,3.059,142.43,142.35,10.7853]
[1642160807324,2.809,142.43,142.36,6.13382005]
[1642160807527,0.26,142.43,142.38,10.5335]
[1642160807925,10.7933,142.44,142.38,10.5335]
[1642160808929,0.25,142.44,142.39,17.65088483]
[1642160809127,0.25,142.44,142.39,28.18308483]
[1642160809353,10.7826,142.45,142.39,28.18308483]
[1642160810153,10.7826,142.45,142.39,10.5322]
[1642160810353,11.0426,142.45,142.37,2.807]
[1642160810553,11.0426,142.45,142.38,10.5335]
[1642160812455,11.0426,142.45,142.39,3.37506459]
[1642160812658,11.0426,142.45,142.39,13.90746459]
[1642160812863,0.25,142.45,142.39,22.80646459]
[1642160813057,0.26,142.45,142.39,22.80646459]
[1642160813256,2.807,142.46,142.39,22.80646459]
[1642160813458,2.807,142.49,142.39,23.06646459]
[1642160813659,2.807,142.49,142.4,24.9468]
[1642160813857,10.5303,142.48,142.43,10.5299]
[1642160814057,34.5249,142.5,142.43,10.7799]
[1642160814258,24.4349,142.5,142.43,10.5299]
[1642160814458,34.5249,142.5,142.43,10.5299]
[1642160814757,59.41433095,142.5,142.43,10.5299]
[1642160814959,70.19323095,142.5,142.43,10.5299]
[1642160815162,73.00023095,142.5,142.41,2.807]
[1642160815359,73.00023095,142.5,142.42,10.5304]
[1642160816065,73.26023095,142.5,142.42,10.5304]
[1642160817060,73.26023095,142.5,142.42,10.7804]
[1642160817262,73.26023095,142.5,142.42,28.46809249]
[1642160817460,62.92023095,142.5,142.42,28.46809249]
[1642160817865,35.2238,142.5,142.44,10.529]
[1642160818562,20.6183,142.51,142.44,10.779]
[1642160818764,0.25,142.5,142.44,10.779]
[1642160818962,47.46645185,142.51,142.45,2.807]
[1642160819161,47.46645185,142.51,142.45,13.3354]
[1642160819364,47.21645185,142.51,142.45,10.5284]
[1642160820163,46.71645185,142.51,142.45,10.5284]
[1642160820364,46.71645185,142.51,142.44,2.807]
[1642160820592,47.22645185,142.51,142.44,10.5287]
[1642160821866,20.6283,142.51,142.44,10.5287]
[1642160822064,10.35,142.51,142.44,10.7787]
[1642160822267,10.35,142.51,142.44,10.5287]
[1642160822467,13.3344,142.52,142.44,10.5287]
[1642160822665,6.61748513,142.54,142.44,18.3177]
[1642160822866,29.47751626,142.54,142.47,10.5269]
[1642160823067,32.28351626,142.54,142.47,10.5269]
[1642160823266,1.9180022,142.53,142.47,10.5269]
[1642160823467,1.9180022,142.53,142.47,10.7769]
[1642160823669,1.9180022,142.53,142.48,2.807]
[1642160824066,1.9180022,142.53,142.5,10.5245]
[1642160824468,1.9180022,142.53,142.51,6.06439993]
[1642160824869,1.9180022,142.54,142.51,6.06439993]
[1642160825868,1.9180022,142.54,142.51,16.58799993]
[1642160826373,61.86966748,142.59,142.51,16.58799993]
[1642160826374,1.9180022,142.56,142.51,16.58799993]
[1642160826670,1.9180022,142.56,142.51,86.93799993]
[1642160827272,1.9180022,142.58,142.51,86.93799993]
[1642160828105,1.9180022,142.58,142.51,17.09799993]
[1642160828272,28.61780066,142.57,142.51,6.06439993]
[1642160828472,2.806,142.56,142.51,6.06439993]
[1642160828674,2.806,142.56,142.5,2.00880559]
[1642160828874,10.5269,142.54,142.5,2.00880559]
[1642160829073,11.0369,142.54,142.5,2.00880559]
[1642160829377,35.38686659,142.54,142.46,15.34200559]
[1642160829771,24.85996659,142.54,142.46,15.34200559]
[1642160829970,24.60996659,142.54,142.46,15.85200559]
[1642160830171,24.85996659,142.54,142.46,15.34200559]
[1642160830570,34.94996659,142.54,142.46,15.34200559]
[1642160830772,2.807,142.53,142.46,2.00880559]
[1642160830972,13.407,142.53,142.46,2.00880559]
[1642160831378,13.407,142.53,142.45,12.53700559]
[1642160831575,13.407,142.53,142.45,12.78700559]
[1642160832377,13.407,142.53,142.45,10.7782]
[1642160832378,15.3250022,142.53,142.45,10.7782]
[1642160832577,10.5278,142.52,142.45,10.7782]
[1642160832777,25.36018416,142.51,142.45,11.0382]
[1642160832977,25.62018416,142.51,142.46,2.807]
[1642160833980,25.87018416,142.51,142.45,10.7782]
[1642160834180,25.87018416,142.51,142.45,12.78700559]
[1642160834578,25.62018416,142.51,142.45,12.78700559]
[1642160835912,25.87018416,142.51,142.45,12.78700559]
[1642160836813,36.39848416,142.51,142.45,2.00880559]
[1642160837213,46.48848416,142.51,142.45,2.00880559]
[1642160837917,10.5327,142.47,142.44,2.00880559]
[1642160838113,2.807,142.46,142.44,2.00880559]
[1642160838314,26.41246076,142.45,142.44,2.00880559]
[1642160838614,10.6,142.45,142.4,4.01601532]
[1642160838814,2.807,142.44,142.4,4.01601532]
[1642160839013,10.5362,142.42,142.4,4.01601532]
[1642160839218,2.807,142.41,142.35,4.01601532]
[1642160839413,0.51,142.42,142.35,4.01601532]
[1642160839614,0.51,142.44,142.36,2.809]
[1642160839815,0.51,142.43,142.36,2.809]
[1642160840015,0.25,142.44,142.36,13.8532]
[1642160840415,0.25,142.44,142.36,13.5932]
[1642160841017,30.84239654,142.46,142.36,13.5932]
[1642160841217,40.93239654,142.46,142.36,13.5932]
[1642160841418,48.65849654,142.46,142.36,13.5932]
[1642160841917,48.91849654,142.46,142.36,13.5932]
[1642160842316,21.1331,142.46,142.36,13.5932]
[1642160843621,20.8831,142.46,142.36,13.5932]
[1642160844419,2.807,142.45,142.36,13.5932]
[1642160844620,13.3402,142.45,142.36,13.5932]
[1642160844824,10.09,142.44,142.36,2.809]
[1642160845021,2.807,142.43,142.35,17.35841532]
[1642160845222,72.647,142.43,142.35,14.55141532]
[1642160845422,73.157,142.43,142.35,14.55141532]
[1642160846025,10.5358,142.42,142.35,4.01601532]
[1642160846226,2.809,142.41,142.34,2.809]
[1642160846624,3.319,142.41,142.34,2.809]
[1642160846828,73.159,142.41,142.34,2.809]
[1642160847026,29.02166228,142.4,142.34,2.809]
[1642160847427,29.53166228,142.4,142.34,2.809]
[1642160847626,40.06876228,142.4,142.34,2.809]
[1642160848130,11.0471,142.4,142.34,2.809]
[1642160848325,11.0471,142.4,142.34,3.059]
[1642160848326,0.26,142.4,142.34,3.059]
[1642160848524,23.4322,142.45,142.34,11.0461]
[1642160848726,20.6232,142.45,142.35,2.807]
[1642160848930,0.25,142.45,142.35,3.067]
[1642160849126,0.25,142.45,142.35,3.317]
[1642160849826,2.807,142.46,142.39,10.5324]
[1642160850026,0.26,142.46,142.39,18.9764]
[1642160850226,0.26,142.46,142.4,2.807]
[1642160850627,10.09,142.49,142.42,10.5301]
[1642160851028,12.897,142.49,142.4,2.807]
[1642160851227,13.147,142.49,142.4,2.807]
[1642160851628,23.6772,142.49,142.4,2.807]
[1642160851827,1.70077588,142.48,142.4,2.807]
[1642160852026,12.897,142.47,142.4,2.807]
[1642160852426,13.407,142.47,142.4,2.807]
[1642160853229,13.407,142.47,142.4,13.3387]
[1642160853427,10.6,142.47,142.4,13.3387]
[1642160853628,0.26,142.47,142.4,13.3387]
[1642160853828,0.26,142.47,142.4,13.5887]
[1642160854027,3.067,142.48,142.4,13.5887]
[1642160854229,20.8808,142.48,142.4,13.5887]
[1642160855027,21.1308,142.48,142.4,13.5887]
[1642160855229,20.8708,142.48,142.4,13.5887]
[1642160855829,10.34,142.48,142.4,13.5887]
[1642160856427,10.6,142.48,142.4,13.5887]
[1642160856628,10.34,142.48,142.4,13.5887]
[1642160857029,10.34,142.48,142.4,13.8487]
[1642160857229,2.807,142.51,142.4,13.8487]
[1642160857629,3.057,142.51,142.4,15.3988538]
[1642160858029,3.057,142.51,142.41,10.09]
[1642160858231,0.25,142.51,142.46,10.5255]
[1642160858830,4.32048513,142.52,142.46,10.5255]
[1642160859032,0.51,142.52,142.46,10.5255]
[1642160859331,0.26,142.52,142.46,10.5255]
[1642160859531,3.067,142.53,142.46,10.5255]
[1642160859831,2.807,142.53,142.46,10.5255]
[1642160860034,2.807,142.53,142.46,10.7755]
[1642160860432,2.807,142.53,142.46,11.0355]
[1642160860633,3.81048513,142.55,142.49,10.5249]
[1642160861135,3.81048513,142.55,142.5,2.806]
[1642160861534,3.81048513,142.55,142.5,3.056]
[1642160861942,3.81048513,142.55,142.52,10.5225]
[1642160862135,3.81048513,142.57,142.53,6.06439993]
[1642160862540,3.81048513,142.57,142.53,6.57439993]
[1642160863335,5.94838691,142.6,142.55,10.5199]
[1642160863539,4.01609884,142.62,142.55,18.8049]
[1642160863737,4.01609884,142.62,142.56,2.805]
[1642160863935,4.01609884,142.62,142.56,3.065]
[1642160864140,4.01609884,142.62,142.56,4.8651538]
[1642160864336,4.01609884,142.62,142.57,3.74536461]
[1642160864536,4.01609884,142.62,142.58,2.805]
[1642160864738,4.01516492,142.65,142.58,2.805]
[1642160864940,4.01516492,142.65,142.59,10.5164]
[1642160865442,4.01516492,142.65,142.59,11.0264]
[1642160865842,4.01516492,142.66,142.59,11.0264]
[1642160866244,4.01516492,142.66,142.59,12.5765538]
[1642160866442,4.01516492,142.66,142.6,69.84]
[1642160866644,4.01516492,142.66,142.63,10.5125]
[1642160866843,5.94838691,142.68,142.63,10.5125]
[1642160867045,5.94838691,142.68,142.64,20.13686812]
[1642160867444,5.94838691,142.68,142.64,20.39686812]
[1642160867849,5.94838691,142.68,142.65,10.5126]
[1642160868049,4.01401695,142.72,142.66,3.03219997]
[1642160868946,4.27401695,142.72,142.67,10.5113]
[1642160869371,4.52401695,142.72,142.67,10.5113]
[1642160869878,4.26401695,142.72,142.67,10.5113]
[1642160870279,4.01401695,142.71,142.67,10.5113]
[1642160870481,4.01401695,142.71,142.67,11.0213]
[1642160870982,4.01401695,142.71,142.69,10.5086]
[1642160871184,5.94838691,142.73,142.7,81.06439993]
[1642160871384,5.94838691,142.73,142.7,83.86639993]
[1642160871584,5.94838691,142.76,142.7,84.12639993]
[1642160871886,5.94838691,142.76,142.7,81.32439993]
[1642160872086,5.94838691,142.76,142.71,14.25276461]
[1642160872484,5.94838691,142.76,142.71,14.51276461]
[1642160872883,2.802,142.78,142.71,14.51276461]
[1642160873119,3.062,142.78,142.71,14.51276461]
[1642160873486,3.312,142.78,142.71,14.51276461]
[1642160873685,3.062,142.78,142.71,14.51276461]
[1642160873886,0.26,142.78,142.71,14.51276461]
[1642160874085,274.51038691,142.79,142.71,14.51276461]
[1642160874287,271.70838691,142.79,142.71,14.51276461]
[1642160875087,271.95838691,142.79,142.71,14.51276461]
[1642160875289,101.85838691,142.79,142.71,14.51276461]
[1642160875988,6.45838691,142.79,142.71,14.51276461]
[1642160876189,6.19838691,142.79,142.71,14.51276461]
[1642160876890,5.94838691,142.79,142.71,14.51276461]
[1642160877093,8.75038691,142.8,142.71,26.40291841]
[1642160877292,5.94838691,142.8,142.72,2.802]
[1642160877493,5.94838691,142.8,142.76,10.5038]
[1642160878093,10.09,142.84,142.72,3.062]
[1642160878094,8.74938691,142.83,142.77,16.7824703]
[1642160878493,5.94838691,142.83,142.77,16.7824703]
[1642160878693,5.94838691,142.83,142.77,27.2864703]
[1642160879197,5.94838691,142.83,142.77,10.504]
[1642160879498,6.19838691,142.83,142.77,10.504]
[1642160880095,6.45838691,142.83,142.77,10.504]
[1642160881421,16.96308691,142.83,142.77,10.504]
[1642160881622,16.70308691,142.83,142.77,10.504]
[1642160882225,16.70308691,142.83,142.76,10.505]
[1642160882425,10.7547,142.83,142.73,2.801]
[1642160882623,10.5063,142.81,142.73,2.801]
[1642160882823,2.801,142.8,142.73,2.801]
[1642160883026,0.25,142.8,142.73,2.801]
[1642160883226,0.51,142.8,142.73,2.801]
[1642160883428,0.51,142.8,142.74,10.506]
[1642160883627,2.801,142.82,142.74,10.506]
[1642160883826,0.26,142.81,142.74,10.506]
[1642160884027,10.7659,142.81,142.74,10.506]
[1642160884226,10.82350814,142.83,142.75,69.84]
[1642160884429,8.02250814,142.83,142.79,10.5024]
[1642160884629,8.02250814,142.83,142.79,15.8274]
[1642160884927,8.02250814,142.83,142.8,2.799]
[1642160885127,5.94838691,142.84,142.81,6.88289746]
[1642160885332,8.691e-05,142.84,142.81,6.88289746]
[1642160885527,8.691e-05,142.84,142.81,17.07349993]
[1642160886131,9.97457133,142.89,142.81,86.91349993]
[1642160886334,8.01838134,142.91,142.82,2.799]
[1642160886632,8.01838134,142.91,142.83,21.56037108]
[1642160886829,8.01838134,142.91,142.84,2.799]
[1642160887030,8.26838134,142.91,142.84,3.059]
[1642160887639,10.81738134,142.94,142.86,10.4971]
[1642160887839,8.01838134,142.94,142.87,2.799]
[1642160888038,8.01838134,142.94,142.87,0.26]
[1642160888233,8.01838134,142.94,142.88,2.799]
[1642160888433,8.01838134,142.94,142.88,3.059]
[1642160888637,2.799,142.96,142.89,2.32186165]
[1642160888834,13.2932,142.97,142.89,12.81666165]
[1642160889841,2.798,142.97,142.89,12.81666165]
[1642160890035,10.81303366,142.97,142.89,13.07666165]
[1642160890437,11.06303366,142.97,142.89,13.07666165]
[1642160891037,8.26503366,142.97,142.9,2.798]
[1642160891246,0.25,142.97,142.91,10.4936]
[1642160891443,34.91168767,142.98,142.91,10.4936]
[1642160891637,35.17168767,142.98,142.91,10.4936]
[1642160892138,10.7537,142.98,142.91,10.4936]
[1642160892338,0.26,142.98,142.91,10.4936]
[1642160892537,10.4929,142.99,142.92,2.798]
[1642160892740,10.4929,142.99,142.92,13.2909]
[1642160893140,18.50668888,142.99,142.92,13.2909]
[1642160893640,8.01378888,142.99,142.92,13.2909]
[1642160893843,8.01378888,142.99,142.92,13.8009]
[1642160894039,8.01378888,142.99,142.92,13.2909]
[1642160894240,8.01378888,142.99,142.92,13.5509]
[1642160894441,2.798,143.0,142.92,10.4929]
[1642160894740,10.4928,142.99,142.91,0.02]
[1642160894940,2.798,142.98,142.91,0.02]
[1642160895440,2.798,142.99,142.91,0.02]
[1642160895643,23.01941641,143.0,142.92,2.798]
[1642160895842,8.26393102,142.99,142.95,10.4905]
[1642160896240,8.01393102,142.99,142.95,10.4905]
[1642160896841,10.4911,143.02,142.95,10.4905]
[1642160897543,10.7411,143.02,142.95,10.4905]
[1642160898444,10.7411,143.02,142.95,32.05087108]
[1642160898642,0.51,143.02,142.95,32.05087108]
[1642160898841,0.25,143.02,142.95,38.70987108]
[1642160899044,2.797,143.05,142.95,38.70987108]
[1642160899045,95.4,143.04,142.95,38.70987108]
[1642160900443,95.65,143.04,142.95,38.70987108]
[1642160900744,0.25,143.04,142.95,38.70987108]
[1642160900943,29.46927868,143.05,142.96,2.797]
[1642160901144,10.09,143.04,142.94,2.797]
[1642160901344,2.797,143.03,142.92,0.02]
[1642160901548,10.09,143.02,142.92,0.02]
[1642160901846,2.797,143.01,142.92,0.02]
[1642160902045,13.7987,143.01,142.93,13.2889]
[1642160902344,11.0017,143.01,142.93,13.2889]
[1642160902744,11.0017,143.01,142.93,13.5389]
[1642160902944,0.51,143.01,142.93,13.7989]
[1642160903243,10.8085332,143.03,142.93,13.7989]
[1642160903645,10.8085332,143.03,142.93,83.6389]
[1642160903848,10.8085332,143.03,142.93,85.1890538]
[1642160904149,2.797,143.03,142.93,85.1890538]
[1642160904746,10.4881,143.05,142.93,91.2090538]
[1642160905046,10.7381,143.05,142.93,91.2090538]
[1642160905245,10.4881,143.05,142.93,90.9590538]
[1642160905449,10.7381,143.05,142.93,89.6589]
[1642160905747,10.7381,143.05,142.93,83.6589]
[1642160906650,10.4881,143.05,142.93,83.6589]
[1642160906877,10.4881,143.05,142.93,85.2090538]
[1642160907048,10.4881,143.05,142.93,83.6589]
[1642160907948,10.9981,143.05,142.93,83.6589]
[1642160908851,10.7481,143.05,142.93,83.4089]
[1642160909051,10.9981,143.05,142.93,83.6589]
[1642160909450,10.9981,143.05,142.93,89.6589]
[1642160910150,10.7381,143.05,142.93,89.6589]
[1642160911552,10.9981,143.05,142.93,89.6589]
[1642160912154,10.9981,143.05,142.93,97.4719]
[1642160912452,10.7481,143.05,142.93,97.4719]
[1642160915055,10.9981,143.05,142.94,10.09]
[1642160915255,10.9981,143.05,142.95,2.797]
[1642160915455,10.9981,143.05,142.99,10.4878]
[1642160915658,10.9981,143.05,143.0,3.11470221]
[1642160916658,0.51,143.05,143.0,13.60230221]
[1642160917056,19.00715427,143.06,143.0,13.60230221]
[1642160917256,18.75715427,143.06,143.0,13.60230221]
[1642160918156,18.49715427,143.06,143.0,13.60230221]
[1642160918559,18.74715427,143.06,143.0,13.60230221]
[1642160918958,10.7373,143.06,143.0,13.60230221]
[1642160919758,10.7373,143.06,143.0,13.62230221]
[1642160920160,10.7373,143.06,143.0,0.02]
[1642160920360,10.4909,143.01,142.93,2.795]
[1642160920559,10.7409,143.01,142.93,2.795]
[1642160921260,11.0009,143.01,142.94,18.15019102]
[1642160921463,10.0009,143.01,142.94,28.64169102]
[1642160921760,9.7409,143.01,142.94,28.90169102]
[1642160921965,0.25,143.01,142.94,28.90169102]
[1642160922164,20.58,143.02,142.94,28.90169102]
[1642160922364,10.49,143.02,142.95,2.797]
[1642160922563,10.49,143.02,142.96,10.4896]
[1642160922965,10.4892,143.03,142.96,10.7496]
[1642160923366,10.4892,143.03,142.96,10.4896]
[1642160923566,10.7392,143.03,142.96,10.4896]
[1642160924067,10.9992,143.03,142.96,10.4896]
[1642160925868,10.7392,143.03,142.96,10.4896]
[1642160926168,10.7392,143.03,142.96,16.4216]
[1642160926669,0.25,143.03,142.96,16.4216]
[1642160926868,0.25,143.03,142.96,16.6816]
[1642160927071,10.7386,143.04,142.96,16.6816]
[1642160927669,10.7386,143.04,142.96,16.4216]
[1642160928072,10.7386,143.04,142.96,16.6816]
[1642160928771,10.4886,143.04,142.96,16.6816]
[1642160928972,10.4886,143.04,142.96,16.9316]
[1642160929699,10.7486,143.04,142.96,16.9316]
[1642160930296,0.26,143.04,142.96,16.9316]
[1642160930497,0.51,143.05,142.96,16.9316]
[1642160930697,45.9966,143.06,142.96,16.9316]
[1642160931096,45.9966,143.06,142.96,22.9316]
[1642160931496,56.4837,143.06,142.96,22.9316]
[1642160931897,2.797,143.08,143.01,10.4861]
[1642160932099,2.795,143.09,143.02,5.73204171]
[1642160932301,10.09,143.1,143.03,2.795]
[1642160932501,10.09,143.1,143.02,8.52704171]
[1642160932699,10.09,143.1,143.02,8.77704171]
[1642160933400,10.4849,143.09,143.03,10.4853]
[1642160934904,10.7449,143.09,143.03,10.4853]
[1642160935103,10.9949,143.09,143.03,10.4853]
[1642160935502,2.795,143.08,143.02,10.486]
[1642160935700,13.281,143.08,143.02,10.486]
[1642160935901,13.791,143.08,143.02,10.486]
[1642160936201,3.055,143.08,143.02,10.486]
[1642160936401,3.055,143.08,143.03,23.43876771]
[1642160936603,0.26,143.08,143.03,30.88976771]
[1642160936804,0.51,143.08,143.04,10.4844]
[1642160937005,0.25,143.08,143.04,10.4844]
[1642160937906,10.9948,143.09,143.04,10.4844]
[1642160938110,10.7448,143.09,143.04,10.4844]
[1642160938507,10.7448,143.09,143.03,33.92376771]
[1642160938708,13.2798,143.09,143.0,37.7425]
[1642160938907,10.4848,143.09,143.0,3.055]
[1642160939509,10.7348,143.09,143.0,3.055]
[1642160939709,10.7348,143.09,143.01,17.71153797]
[1642160939908,10.7348,143.09,143.01,25.40953797]
[1642160940116,8.00711229,143.1,143.01,25.66953797]
[1642160940315,8.00711229,143.1,143.02,10.4857]
[1642160940316,5.66645494,143.1,143.02,10.4857]
[1642160940514,5.66645494,143.1,143.03,12.885]
[1642160940710,9.97457133,143.16,143.04,75.0]
[1642160940909,9.97457133,143.16,143.05,12.885]
[1642160941111,9.97457133,143.16,143.06,12.05188985]
[1642160941312,9.97457133,143.16,143.07,12.885]
[1642160941512,9.97457133,143.16,143.07,28.166]
[1642160941914,13.11938678,143.21,143.07,29.71614147]
[1642160942109,10.32538678,143.21,143.08,69.84]
[1642160942313,10.32538678,143.21,143.11,80.3153]
[1642160942512,10.32538678,143.21,143.12,12.884]
[1642160942912,10.32538678,143.21,143.13,3.82323059]
[1642160943212,2.793,143.2,143.14,10.4757]
[1642160944412,0.35081545,143.21,143.14,13.2687]
[1642160944615,0.35081545,143.21,143.14,10.4757]
[1642160945814,0.35081545,143.21,143.0,17.28677446]
[1642160945815,2.793,143.2,143.08,12.883]
[1642160946017,14.83377588,143.2,143.08,2.793]
[1642160946417,13.133,143.2,143.08,2.793]
[1642160946817,16.48089648,143.19,143.09,22.91681023]
[1642160947017,2.794,143.18,143.09,22.91681023]
[1642160947519,3.304,143.18,143.09,23.16681023]
[1642160947920,3.304,143.18,143.09,22.91681023]
[1642160948619,3.044,143.18,143.09,22.91681023]
[1642160949020,26.2032242,143.17,143.09,12.43841023]
[1642160949221,2.794,143.16,143.09,12.43841023]
[1642160949624,3.044,143.16,143.09,12.43841023]
[1642160949825,3.044,143.16,143.03,2.794]
[1642160950026,23.8754,143.16,143.03,2.794]
[1642160950232,23.8754,143.16,142.98,2.795]
[1642160950428,46.9716,143.15,142.98,25.8405]
[1642160950626,12.885,143.14,142.98,25.8405]
[1642160950827,25.86623182,143.13,142.99,11.47985409]
[1642160951030,12.885,143.12,142.99,11.47985409]
[1642160951227,10.4873,143.08,142.99,11.47985409]
[1642160951430,13.135,143.12,143.0,2.795]
[1642160951726,0.26,143.08,143.0,2.795]
[1642160952128,0.26,143.08,143.0,3.045]
[1642160952328,13.135,143.12,143.0,3.045]
[1642160952732,10.4857,143.1,143.0,2.795]
[1642160952930,27.00218069,143.09,142.99,11.47985409]
[1642160953328,97.09218069,143.09,142.99,11.47985409]
[1642160953528,3.045,143.09,142.99,11.47985409]
[1642160953729,2.795,143.09,142.99,11.47985409]
[1642160953930,2.795,143.09,142.99,11.72985409]
[1642160954331,3.93284938,143.08,142.99,11.72985409]
[1642160954930,10.737,143.08,142.99,11.72985409]
[1642160955332,37.28466617,143.08,142.99,11.47985409]
[1642160955530,2.795,143.07,142.99,11.47985409]
[1642160955754,2.795,143.07,142.95,2.795]
[1642160955956,10.09,143.06,142.95,2.795]
[1642160956154,10.09,143.06,142.91,13.68480071]
[1642160956155,2.797,143.05,142.91,5.99040071]
[1642160956455,10.09,143.04,142.91,3.19340071]
[1642160956654,2.797,143.03,142.91,3.19340071]